{"text_format":"1","workbook":"xlsx","n_sheets":2,"sheets":["Sheet1","Sheet2"],"not_rendered":{"charts":0,"images":0,"macros":1,"external_links":0,"defined_names":0,"comments":0,"pivot_tables":0},"unopened":[],"bounds":{"document_bytes":16777216,"sheet_cells":100000,"rows_first":2000,"rows_last":500,"rows_between":2000,"halvings":0,"cell_chars":16384,"cell_head_chars":4096},"cells_cut":0,"cells_raw":0,"read":"whole","date_system":"1900"}

{"sheet":"Sheet1","index":0,"n_rows":13,"n_cols":5,"rows_kept":13,"cut":false,"hidden":false,"merged":[]}
[]
[]
[null,"Book Name","Original Price","Discount Price"]
[null,"A Tale of Two Cities",58,{"$f":"(C4/100)*75","v":43.5},{"$f":"(D4/100)*75","v":32.625}]
[null,"Mother",64,{"$f":"(C5/100)*75","v":48},36]
[null,"Great Expectations",62,46.5,34.875]
[null,"She ",47,35.25,26.4375]
[null,"And Return of She",49,36.75,27.5625]
[null,"Ode to the West Wind",70,52.5,39.375]
[null,"The Forty Rules of Love",54,40.5,30.375000000000004]
[null,"Leaves of Grass",55,41.25,30.9375]
[null,"The Miracle Morning",61,45.75,34.3125]
[null,"Playing It My Way",43,32.25,24.1875]

{"sheet":"Sheet2","index":1,"n_rows":13,"n_cols":4,"rows_kept":13,"cut":false,"hidden":false,"merged":[]}
[]
[]
[null,"Book Name","Original Price","Discount Price"]
[null,"A Tale of Two Cities",58,{"$f":"(C4/100)*75","v":43.5}]
[null,"Mother",64,{"$f":"(C5/100)*75","v":48}]
[null,"Great Expectations",62,46.5]
[null,"She ",47,35.25]
[null,"And Return of She",49,36.75]
[null,"Ode to the West Wind",70,52.5]
[null,"The Forty Rules of Love",54,40.5]
[null,"Leaves of Grass",55,41.25]
[null,"The Miracle Morning",61,45.75]
[null,"Playing It My Way",43,32.25]